[Event "*** Titled Tuesday 3|2 Blitz"]
[Site "Chess.com"]
[Date "2015.02.24"]
[Round "1"]
[White "AUSSIE_PINOY"]
[Black "1random"]
[Result "0-1"]
[WhiteElo "2354"]
[BlackElo "2016"]
[TimeControl "180+2"]
[EndTime "11:08:16 PST"]
[Termination "1random won by resignation"]

1. d4 {[%clk 0:02:53.6]} 1... Nf6 {[%clk 0:02:58.1]} 2. Nf3 {[%clk 0:02:53.6]}
2... d5 {[%clk 0:02:58.1]} 3. c4 {[%clk 0:02:54]} 3... e6 {[%clk 0:02:56.2]} 4.
Nc3 {[%clk 0:02:55]} 4... dxc4 {[%clk 0:02:52.1]} 5. e4 {[%clk 0:02:55]} 5...
Bb4 {[%clk 0:02:48.8]} 6. e5 {[%clk 0:02:54.5]} 6... Nd5 {[%clk 0:02:48.1]} 7.
Bd2 {[%clk 0:02:52.4]} 7... Bxc3 {[%clk 0:02:49]} 8. bxc3 {[%clk 0:02:52.7]}
8... Nb6 {[%clk 0:02:47.9]} 9. a4 {[%clk 0:02:49.8]} 9... a5 {[%clk 0:02:48.4]}
10. h4 {[%clk 0:02:42.1]} 10... N8d7 {[%clk 0:02:38.2]} 11. Be3 {[%clk
0:02:37.2]} 11... Qe7 {[%clk 0:02:18]} 12. Ng5 {[%clk 0:02:33.9]} 12... Nd5
{[%clk 0:02:03.4]} 13. Bxc4 {[%clk 0:02:24]} 13... N7b6 {[%clk 0:01:54.3]} 14.
Bd3 {[%clk 0:02:13.3]} 14... Nxc3 {[%clk 0:01:48.5]} 15. Qc2 {[%clk 0:02:08.4]}
15... Ncd5 {[%clk 0:01:33.5]} 16. Bd2 {[%clk 0:00:56.6]} 16... Nb4 {[%clk
0:01:29.3]} 17. Qb3 {[%clk 0:00:53.1]} 17... Nxd3+ {[%clk 0:01:26.7]} 18. Qxd3
{[%clk 0:00:54]} 18... Bd7 {[%clk 0:01:24.8]} 19. O-O {[%clk 0:00:47.8]} 19...
h6 {[%clk 0:01:23]} 20. Ne4 {[%clk 0:00:47.4]} 20... Nxa4 {[%clk 0:01:08.2]} 21.
f4 {[%clk 0:00:45.3]} 21... O-O {[%clk 0:01:04.7]} 22. h5 {[%clk 0:00:42.9]}
22... b5 {[%clk 0:01:02]} 23. Rf3 {[%clk 0:00:40.1]} 23... Nb2 {[%clk
0:01:02.4]} 24. Qe2 {[%clk 0:00:38]} 24... Nc4 {[%clk 0:00:56.9]} 25. Bc1 {[%clk
0:00:38]} 25... Bc6 {[%clk 0:00:57.4]} 26. Rg3 {[%clk 0:00:38.6]} 26... Bxe4
{[%clk 0:00:50.9]} 27. Qxe4 {[%clk 0:00:38.9]} 27... f5 {[%clk 0:00:52.6]} 28.
exf6 {[%clk 0:00:39.5]} 28... Qxf6 {[%clk 0:00:53.1]} 29. Ra2 {[%clk 0:00:35]}
29... Rad8 {[%clk 0:00:51.7]} 30. Rd3 {[%clk 0:00:29.2]} 30... Qf5 {[%clk
0:00:52.1]} 31. Qe2 {[%clk 0:00:27.9]} 31... Rd6 {[%clk 0:00:39]} 32. g4 {[%clk
0:00:28.7]} 32... Qd5 {[%clk 0:00:36.1]} 33. Ra1 {[%clk 0:00:28.7]} 33... c5
{[%clk 0:00:28.7]} 34. Rb1 {[%clk 0:00:29.5]} 34... cxd4 {[%clk 0:00:29]} 35.
Rdb3 {[%clk 0:00:30]} 35... b4 {[%clk 0:00:27.9]} 36. Qd3 {[%clk 0:00:30.5]}
36... Ne3 {[%clk 0:00:24.6]} 37. Bxe3 {[%clk 0:00:30.5]} 37... dxe3 {[%clk
0:00:24.8]} 38. Qxe3 {[%clk 0:00:32]} 38... Qd4 {[%clk 0:00:25.2]} 39. Kf2
{[%clk 0:00:33.1]} 39... Rxf4+ {[%clk 0:00:25.3]} 40. Ke2 {[%clk 0:00:33.6]}
40... Re4 {[%clk 0:00:26.4]} 0-1

[Event "*** Titled Tuesday 3|2 Blitz"]
[Site "Chess.com"]
[Date "2015.02.24"]
[Round "1"]
[White "BjarkeSahl"]
[Black "gmjlh"]
[Result "0-1"]
[WhiteElo "2128"]
[BlackElo "2477"]
[TimeControl "180+2"]
[EndTime "11:09:25 PST"]
[Termination "gmjlh won by resignation"]

1. Nf3 {[%clk 0:02:50]} 1... d5 {[%clk 0:02:57.3]} 2. g3 {[%clk 0:02:50.5]} 2...
g6 {[%clk 0:02:58.5]} 3. Bg2 {[%clk 0:02:52]} 3... Bg7 {[%clk 0:02:59.5]} 4. O-O
{[%clk 0:02:53.6]} 4... e5 {[%clk 0:03:00.7]} 5. d3 {[%clk 0:02:50.4]} 5... Ne7
{[%clk 0:03:01.7]} 6. e4 {[%clk 0:02:49]} 6... O-O {[%clk 0:02:57.4]} 7. Nc3
{[%clk 0:02:48.8]} 7... d4 {[%clk 0:02:56.4]} 8. Ne2 {[%clk 0:02:49.5]} 8... c5
{[%clk 0:02:56.3]} 9. a4 {[%clk 0:02:47.5]} 9... Nec6 {[%clk 0:02:42.2]} 10. h3
{[%clk 0:02:43.8]} 10... a6 {[%clk 0:02:13.3]} 11. Bg5 {[%clk 0:02:32.1]} 11...
f6 {[%clk 0:02:13.5]} 12. Bc1 {[%clk 0:02:22.7]} 12... Be6 {[%clk 0:02:14.2]}
13. b3 {[%clk 0:02:22.5]} 13... Nd7 {[%clk 0:02:13.4]} 14. Nd2 {[%clk
0:02:21.6]} 14... b5 {[%clk 0:02:14.3]} 15. f4 {[%clk 0:02:22]} 15... bxa4
{[%clk 0:02:05.3]} 16. Rxa4 {[%clk 0:02:22.1]} 16... Nb6 {[%clk 0:02:06.3]} 17.
Ra1 {[%clk 0:02:20.5]} 17... a5 {[%clk 0:02:07.5]} 18. Nf3 {[%clk 0:02:08.5]}
18... a4 {[%clk 0:02:07.4]} 19. bxa4 {[%clk 0:02:09]} 19... Rxa4 {[%clk
0:01:56.9]} 20. Rxa4 {[%clk 0:02:08.1]} 20... Nxa4 {[%clk 0:01:58.8]} 21. Nh4
{[%clk 0:02:07.5]} 21... c4 {[%clk 0:01:49.8]} 22. f5 {[%clk 0:02:03.6]} 22...
Bf7 {[%clk 0:01:50.6]} 23. fxg6 {[%clk 0:02:04]} 23... hxg6 {[%clk 0:01:52.5]}
24. Nf3 {[%clk 0:01:45.9]} 24... Nc3 {[%clk 0:01:33]} 25. Nxc3 {[%clk
0:01:40.8]} 25... dxc3 {[%clk 0:01:34.9]} 26. h4 {[%clk 0:01:37.3]} 26... cxd3
{[%clk 0:01:29.8]} 27. cxd3 {[%clk 0:01:32.5]} 27... Nd4 {[%clk 0:01:28.1]} 28.
Nxd4 {[%clk 0:01:28.1]} 28... Qxd4+ {[%clk 0:01:30]} 29. Kh2 {[%clk 0:01:28.6]}
29... Rd8 {[%clk 0:01:25.7]} 30. Rf3 {[%clk 0:01:26.5]} 30... Rc8 {[%clk
0:00:53]} 31. Qf1 {[%clk 0:01:14.6]} 31... Qd6 {[%clk 0:00:47.9]} 32. Bh3 {[%clk
0:01:09.7]} 32... Rc7 {[%clk 0:00:46.5]} 33. Rf2 {[%clk 0:00:36.5]} 33... c2
{[%clk 0:00:47.6]} 34. g4 {[%clk 0:00:28.7]} 34... Bb3 {[%clk 0:00:34.9]} 35. g5
{[%clk 0:00:29.5]} 35... Rf7 {[%clk 0:00:33.1]} 36. h5 {[%clk 0:00:28.5]} 36...
fxg5 {[%clk 0:00:30.4]} 37. Rxf7 {[%clk 0:00:28.1]} 37... Bxf7 {[%clk
0:00:32.3]} 38. hxg6 {[%clk 0:00:28.3]} 38... Qxg6 {[%clk 0:00:31.2]} 39. Qf2
{[%clk 0:00:26.2]} 39... g4 {[%clk 0:00:29.3]} 40. Bg2 {[%clk 0:00:27.6]} 40...
g3+ {[%clk 0:00:18.4]} 41. Qxg3 {[%clk 0:00:27.6]} 41... Qxg3+ {[%clk
0:00:20.3]} 42. Kxg3 {[%clk 0:00:29.2]} 42... Kh7 {[%clk 0:00:21.7]} 43. Bh3
{[%clk 0:00:21.3]} 43... Bh6 {[%clk 0:00:21.7]} 44. Bf5+ {[%clk 0:00:22.6]}
44... Bg6 {[%clk 0:00:22]} 45. Ba3 {[%clk 0:00:23.5]} 45... c1=Q {[%clk
0:00:19.7]} 46. Bxc1 {[%clk 0:00:23]} 46... Bxc1 {[%clk 0:00:21.6]} 47. Be6
{[%clk 0:00:22.9]} 47... Bb2 {[%clk 0:00:22.6]} 48. Bc4 {[%clk 0:00:23.7]} 48...
Bd4 {[%clk 0:00:24.3]} 49. Kf3 {[%clk 0:00:25]} 49... Kg7 {[%clk 0:00:26.2]} 50.
Kg4 {[%clk 0:00:26]} 50... Kf6 {[%clk 0:00:28.1]} 51. Kh4 {[%clk 0:00:26.7]}
51... Bf7 {[%clk 0:00:29.5]} 52. Kg4 {[%clk 0:00:28]} 52... Bxc4 {[%clk
0:00:30.5]} 53. dxc4 {[%clk 0:00:28.2]} 53... Ke6 {[%clk 0:00:32.4]} 54. Kg5
{[%clk 0:00:28.5]} 54... Kd6 {[%clk 0:00:34.3]} 0-1

[Event "*** Titled Tuesday 3|2 Blitz"]
[Site "Chess.com"]
[Date "2015.02.24"]
[Round "1"]
[White "FabianEnglert"]
[Black "AnthonyWirig"]
[Result "0-1"]
[WhiteElo "2236"]
[BlackElo "2562"]
[TimeControl "180+2"]
[EndTime "11:09:26 PST"]
[Termination "AnthonyWirig won by resignation"]

1. Nf3 {[%clk 0:02:57.5]} 1... c5 {[%clk 0:02:52.9]} 2. e4 {[%clk 0:02:56.1]}
2... e6 {[%clk 0:02:50.2]} 3. Nc3 {[%clk 0:02:55.9]} 3... a6 {[%clk 0:02:38]} 4.
g3 {[%clk 0:02:55.7]} 4... Nc6 {[%clk 0:02:33.9]} 5. d4 {[%clk 0:02:49.8]} 5...
cxd4 {[%clk 0:02:34.6]} 6. Nxd4 {[%clk 0:02:51.7]} 6... Qc7 {[%clk 0:02:18.1]}
7. Bg2 {[%clk 0:02:51.7]} 7... d6 {[%clk 0:02:17.4]} 8. O-O {[%clk 0:02:49.9]}
8... Bd7 {[%clk 0:02:18.6]} 9. Re1 {[%clk 0:02:43.3]} 9... Be7 {[%clk
0:02:18.6]} 10. Nxc6 {[%clk 0:02:39.9]} 10... Bxc6 {[%clk 0:02:19.5]} 11. a4
{[%clk 0:02:40.2]} 11... Nf6 {[%clk 0:02:14.7]} 12. a5 {[%clk 0:02:38.2]} 12...
O-O {[%clk 0:02:15.3]} 13. Be3 {[%clk 0:02:38.9]} 13... Rac8 {[%clk 0:02:11.4]}
14. Bb6 {[%clk 0:02:16.1]} 14... Qb8 {[%clk 0:02:12.2]} 15. Na4 {[%clk
0:02:08.6]} 15... d5 {[%clk 0:01:58.4]} 16. Bc5 {[%clk 0:01:31.7]} 16... Bxc5
{[%clk 0:01:46]} 17. Nxc5 {[%clk 0:01:33.6]} 17... dxe4 {[%clk 0:01:43.2]} 18.
Nxe4 {[%clk 0:01:33.2]} 18... Bxe4 {[%clk 0:01:42.3]} 19. Bxe4 {[%clk
0:01:35.1]} 19... b5 {[%clk 0:01:19.6]} 20. axb6 {[%clk 0:01:28.1]} 20... Qxb6
{[%clk 0:01:20.4]} 21. b3 {[%clk 0:01:12.1]} 21... Rfd8 {[%clk 0:01:13.6]} 22.
Bd3 {[%clk 0:00:43.4]} 22... a5 {[%clk 0:01:11.5]} 23. Qd2 {[%clk 0:00:35]}
23... Rd5 {[%clk 0:00:52.7]} 24. Qe3 {[%clk 0:00:35.7]} 24... Qc7 {[%clk
0:00:48.1]} 25. Ra4 {[%clk 0:00:35.1]} 25... Rcd8 {[%clk 0:00:47.1]} 26. Rea1
{[%clk 0:00:32.3]} 26... g6 {[%clk 0:00:42.3]} 27. Qe1 {[%clk 0:00:31.6]} 27...
h5 {[%clk 0:00:35.6]} 28. Rxa5 {[%clk 0:00:29.5]} 28... h4 {[%clk 0:00:34.3]}
29. Rxd5 {[%clk 0:00:28.5]} 29... Rxd5 {[%clk 0:00:36.1]} 30. Qe3 {[%clk
0:00:22.9]} 30... hxg3 {[%clk 0:00:32.6]} 31. hxg3 {[%clk 0:00:24.8]} 31... Kg7
{[%clk 0:00:33.7]} 32. Ra7 {[%clk 0:00:23.6]} 32... Qb8 {[%clk 0:00:34.4]} 33.
Ra4 {[%clk 0:00:21.4]} 33... Re5 {[%clk 0:00:34.3]} 34. Qf3 {[%clk 0:00:20]}
34... Re1+ {[%clk 0:00:33.8]} 35. Kg2 {[%clk 0:00:20.6]} 35... Qe5 {[%clk
0:00:31.2]} 36. Rf4 {[%clk 0:00:20.9]} 36... Qa1 {[%clk 0:00:29.1]} 37. Kh2
{[%clk 0:00:19.9]} 37... Qe5 {[%clk 0:00:24.8]} 38. b4 {[%clk 0:00:20.7]} 38...
g5 {[%clk 0:00:24.9]} 39. Rxf6 {[%clk 0:00:17.5]} 39... Qxf6 {[%clk 0:00:25.5]}
40. Qxf6+ {[%clk 0:00:18.8]} 40... Kxf6 {[%clk 0:00:27.4]} 41. b5 {[%clk
0:00:20.3]} 41... Ke5 {[%clk 0:00:23]} 42. Kh3 {[%clk 0:00:19.4]} 42... f5
{[%clk 0:00:23.8]} 43. Kg2 {[%clk 0:00:16.5]} 43... g4 {[%clk 0:00:21]} 44. f3
{[%clk 0:00:17.9]} 44... gxf3+ {[%clk 0:00:21]} 45. Kxf3 {[%clk 0:00:19.8]}
45... Rb1 {[%clk 0:00:22.2]} 46. g4 {[%clk 0:00:19.7]} 46... fxg4+ {[%clk
0:00:20.6]} 47. Kxg4 {[%clk 0:00:21.6]} 47... Rb4+ {[%clk 0:00:21.3]} 48. Kf3
{[%clk 0:00:22.1]} 48... Kd4 {[%clk 0:00:22.9]} 49. Ke2 {[%clk 0:00:21.6]} 49...
e5 {[%clk 0:00:23.6]} 50. Kf3 {[%clk 0:00:22.4]} 50... Rb2 {[%clk 0:00:21.7]}
51. Ke2 {[%clk 0:00:21.3]} 51... e4 {[%clk 0:00:22.6]} 0-1

[Event "*** Titled Tuesday 3|2 Blitz"]
[Site "Chess.com"]
[Date "2015.02.24"]
[Round "1"]
[White "Colombiano07"]
[Black "Cryptochess"]
[Result "1/2-1/2"]
[WhiteElo "2021"]
[BlackElo "2382"]
[TimeControl "180+2"]
[EndTime "11:09:52 PST"]
[Termination "Game drawn by stalemate"]

1. e4 {[%clk 0:02:57.9]} 1... d6 {[%clk 0:02:58.1]} 2. d4 {[%clk 0:02:58.5]}
2... Nf6 {[%clk 0:02:58.7]} 3. Nc3 {[%clk 0:02:59.2]} 3... g6 {[%clk 0:03:00.2]}
4. Nf3 {[%clk 0:02:59.5]} 4... Bg7 {[%clk 0:03:01.4]} 5. h3 {[%clk 0:02:58.4]}
5... O-O {[%clk 0:03:01.7]} 6. Be3 {[%clk 0:02:59.4]} 6... a6 {[%clk 0:03:01.9]}
7. a4 {[%clk 0:02:59.5]} 7... b6 {[%clk 0:03:03.2]} 8. Qd2 {[%clk 0:03:00.1]}
8... Bb7 {[%clk 0:03:04.1]} 9. Bd3 {[%clk 0:03:01.2]} 9... Nbd7 {[%clk
0:03:01.6]} 10. Bh6 {[%clk 0:02:57.8]} 10... e5 {[%clk 0:02:56.9]} 11. Bxg7
{[%clk 0:02:42.4]} 11... Kxg7 {[%clk 0:02:57.1]} 12. dxe5 {[%clk 0:02:43]} 12...
dxe5 {[%clk 0:02:55]} 13. O-O {[%clk 0:02:42.9]} 13... Qe7 {[%clk 0:02:55.9]}
14. Rfe1 {[%clk 0:02:26.4]} 14... Nc5 {[%clk 0:02:56.7]} 15. Nd5 {[%clk
0:02:20.3]} 15... Bxd5 {[%clk 0:02:34.5]} 16. exd5 {[%clk 0:02:22.2]} 16... e4
{[%clk 0:02:35.9]} 17. b4 {[%clk 0:02:11.4]} 17... Nxd3 {[%clk 0:02:12.6]} 18.
cxd3 {[%clk 0:02:04.7]} 18... Nxd5 {[%clk 0:02:08]} 19. dxe4 {[%clk 0:02:01.6]}
19... Nxb4 {[%clk 0:02:08.1]} 20. a5 {[%clk 0:01:55.4]} 20... b5 {[%clk
0:01:57.1]} 21. Qd4+ {[%clk 0:01:30.4]} 21... Kg8 {[%clk 0:01:54]} 22. Rac1
{[%clk 0:01:11]} 22... Rfd8 {[%clk 0:01:52.7]} 23. Qc5 {[%clk 0:01:10.6]} 23...
Qxc5 {[%clk 0:01:52.1]} 24. Rxc5 {[%clk 0:01:12.5]} 24... Nd3 {[%clk 0:01:53.7]}
25. Rec1 {[%clk 0:01:09.6]} 25... Nxc1 {[%clk 0:01:51.7]} 26. Rxc1 {[%clk
0:01:11.5]} 26... Rac8 {[%clk 0:01:51.9]} 27. Rc6 {[%clk 0:01:12]} 27... Rd6
{[%clk 0:01:49]} 28. Rc5 {[%clk 0:01:13.6]} 28... Rd1+ {[%clk 0:01:48.5]} 29.
Kh2 {[%clk 0:01:14.5]} 29... Ra1 {[%clk 0:01:50.1]} 30. Nd4 {[%clk 0:01:10.8]}
30... Rxa5 {[%clk 0:01:49.3]} 31. Nc6 {[%clk 0:01:12]} 31... Ra2 {[%clk
0:01:32.4]} 32. Ne7+ {[%clk 0:01:03.5]} 32... Kf8 {[%clk 0:01:29.6]} 33. Nxc8
{[%clk 0:01:05.4]} 33... Rxf2 {[%clk 0:01:30.2]} 34. Rxc7 {[%clk 0:01:05.9]}
34... b4 {[%clk 0:01:28.2]} 35. Ra7 {[%clk 0:01:04]} 35... Ra2 {[%clk
0:01:27.4]} 36. Nd6 {[%clk 0:01:04.3]} 36... a5 {[%clk 0:01:21]} 37. Rxf7+
{[%clk 0:01:02.9]} 37... Kg8 {[%clk 0:01:22.4]} 38. Rb7 {[%clk 0:01:04.4]} 38...
Re2 {[%clk 0:01:16.9]} 39. Rb5 {[%clk 0:00:56]} 39... Ra2 {[%clk 0:01:14.9]} 40.
Nc4 {[%clk 0:00:47.5]} 40... Re2 {[%clk 0:01:15.6]} 41. e5 {[%clk 0:00:45]}
41... a4 {[%clk 0:01:16.6]} 42. Rxb4 {[%clk 0:00:45.9]} 42... a3 {[%clk
0:01:18.2]} 43. Nxa3 {[%clk 0:00:45.4]} 43... Rxe5 {[%clk 0:01:18]} 44. Rb7
{[%clk 0:00:46.4]} 44... Re3 {[%clk 0:01:16.5]} 45. Nc4 {[%clk 0:00:47.1]} 45...
Rc3 {[%clk 0:01:16.6]} 46. Ne5 {[%clk 0:00:46.5]} 46... Re3 {[%clk 0:01:14.1]}
47. Ng4 {[%clk 0:00:47.6]} 47... Re6 {[%clk 0:01:12.6]} 48. Kg3 {[%clk
0:00:48.2]} 48... Ra6 {[%clk 0:01:05.2]} 49. h4 {[%clk 0:00:37.5]} 49... Ra3+
{[%clk 0:01:05.4]} 50. Kh2 {[%clk 0:00:38.5]} 50... Ra6 {[%clk 0:01:03.2]} 51.
h5 {[%clk 0:00:39.7]} 51... gxh5 {[%clk 0:01:03]} 52. Nf2 {[%clk 0:00:33.8]}
52... Ra2 {[%clk 0:01:01.7]} 53. Nh3 {[%clk 0:00:34.9]} 53... h4 {[%clk
0:01:01.5]} 54. Rb4 {[%clk 0:00:34.6]} 54... Kg7 {[%clk 0:01:01.5]} 55. Rxh4
{[%clk 0:00:36.2]} 55... Kg6 {[%clk 0:01:00.8]} 56. Rg4+ {[%clk 0:00:35.9]}
56... Kh5 {[%clk 0:00:54.3]} 57. Rg8 {[%clk 0:00:34.9]} 57... Ra3 {[%clk
0:00:52.4]} 58. Nf4+ {[%clk 0:00:34.7]} 58... Kh6 {[%clk 0:00:53]} 59. g4 {[%clk
0:00:34.6]} 59... Rh3+ {[%clk 0:00:47.1]} 60. Kg2 {[%clk 0:00:29.4]} 60... Rg3+
{[%clk 0:00:48.2]} 61. Kh2 {[%clk 0:00:17.2]} 61... Rh3+ {[%clk 0:00:48.1]} 62.
Kg1 {[%clk 0:00:17.2]} 62... Rg3+ {[%clk 0:00:48.9]} 63. Ng2 {[%clk 0:00:18.1]}
63... Rxg2+ {[%clk 0:00:48.2]} 64. Kxg2 {[%clk 0:00:17.4]} 1/2-1/2

[Event "*** Titled Tuesday 3|2 Blitz"]
[Site "Chess.com"]
[Date "2015.02.24"]
[Round "1"]
[White "Hafez_Bakr"]
[Black "bugsbunny444"]
[Result "0-1"]
[WhiteElo "1839"]
[BlackElo "2333"]
[TimeControl "180+2"]
[EndTime "11:10:18 PST"]
[Termination "bugsbunny444 won by resignation"]

1. e4 {[%clk 0:02:58.7]} 1... e6 {[%clk 0:02:58.4]} 2. d4 {[%clk 0:02:58.9]}
2... d5 {[%clk 0:02:59.3]} 3. exd5 {[%clk 0:03:00.1]} 3... exd5 {[%clk
0:03:00.3]} 4. Bb5+ {[%clk 0:03:00.9]} 4... c6 {[%clk 0:03:00.5]} 5. Bd3 {[%clk
0:03:01]} 5... Nf6 {[%clk 0:03:01.2]} 6. Nf3 {[%clk 0:03:02]} 6... Bd6 {[%clk
0:03:02]} 7. h3 {[%clk 0:03:01.7]} 7... O-O {[%clk 0:03:02.7]} 8. O-O {[%clk
0:03:01.7]} 8... h6 {[%clk 0:02:53.5]} 9. c4 {[%clk 0:03:02.1]} 9... dxc4 {[%clk
0:02:52.8]} 10. Bxc4 {[%clk 0:03:02.6]} 10... Nbd7 {[%clk 0:02:54.4]} 11. Nc3
{[%clk 0:03:03.1]} 11... Nb6 {[%clk 0:02:55.7]} 12. Bd3 {[%clk 0:03:03.2]} 12...
Nbd5 {[%clk 0:02:43.8]} 13. Bd2 {[%clk 0:03:01]} 13... Re8 {[%clk 0:02:38.7]}
14. Rc1 {[%clk 0:02:58.5]} 14... Be6 {[%clk 0:02:19.8]} 15. Bb1 {[%clk
0:02:58.8]} 15... Bf8 {[%clk 0:02:17.5]} 16. a3 {[%clk 0:02:56]} 16... Nxc3
{[%clk 0:02:02.2]} 17. Bxc3 {[%clk 0:02:56]} 17... Nd5 {[%clk 0:02:01.2]} 18.
Qc2 {[%clk 0:02:55.3]} 18... g6 {[%clk 0:02:01.8]} 19. Bd2 {[%clk 0:02:51.3]}
19... Bg7 {[%clk 0:01:54.6]} 20. Rfe1 {[%clk 0:02:51.6]} 20... Qb6 {[%clk
0:01:29.7]} 21. Bc3 {[%clk 0:02:47.5]} 21... Bf5 {[%clk 0:01:26]} 22. Qd1 {[%clk
0:02:47]} 22... Bxb1 {[%clk 0:01:12.7]} 23. Rxb1 {[%clk 0:02:46.5]} 23... Qc7
{[%clk 0:01:03.1]} 24. Qd2 {[%clk 0:02:39.4]} 24... Qf4 {[%clk 0:00:53.5]} 25.
Qc2 {[%clk 0:02:32.1]} 25... Qd6 {[%clk 0:00:44.3]} 26. Qb3 {[%clk 0:02:31.3]}
26... Qc7 {[%clk 0:00:42]} 27. Rbd1 {[%clk 0:02:25.4]} 27... Rad8 {[%clk
0:00:40.4]} 28. Rc1 {[%clk 0:02:22.2]} 28... Qb6 {[%clk 0:00:40.4]} 29. Qc4
{[%clk 0:02:20.6]} 29... Qc7 {[%clk 0:00:26.5]} 30. Bd2 {[%clk 0:02:17.3]} 30...
Qd6 {[%clk 0:00:20.9]} 31. Qb3 {[%clk 0:02:05]} 31... Nb6 {[%clk 0:00:18.8]} 32.
Rxe8+ {[%clk 0:02:01.6]} 32... Rxe8 {[%clk 0:00:19.8]} 33. Be3 {[%clk
0:02:01.8]} 33... Qd5 {[%clk 0:00:20.7]} 34. Qc3 {[%clk 0:02:01.8]} 34... Kh7
{[%clk 0:00:17.7]} 35. b3 {[%clk 0:02:01.1]} 35... Qd6 {[%clk 0:00:17.1]} 36. a4
{[%clk 0:02:01]} 36... Nd5 {[%clk 0:00:17.9]} 37. Qd3 {[%clk 0:01:58.5]} 37...
Qe6 {[%clk 0:00:14.2]} 38. Re1 {[%clk 0:01:58.1]} 38... Qd7 {[%clk 0:00:13.7]}
39. Bd2 {[%clk 0:01:57.8]} 39... Rxe1+ {[%clk 0:00:14.1]} 40. Bxe1 {[%clk
0:01:58.3]} 40... Ne7 {[%clk 0:00:14.8]} 41. b4 {[%clk 0:01:57.8]} 41... a6
{[%clk 0:00:15.4]} 42. Bc3 {[%clk 0:01:54.4]} 42... Nf5 {[%clk 0:00:12.5]} 43.
g4 {[%clk 0:01:54.1]} 43... Ne7 {[%clk 0:00:12.6]} 44. Qe3 {[%clk 0:01:54.5]}
44... Nd5 {[%clk 0:00:13.4]} 45. Qd3 {[%clk 0:01:54.5]} 45... b5 {[%clk
0:00:10.3]} 46. axb5 {[%clk 0:01:54.4]} 46... axb5 {[%clk 0:00:12.2]} 47. Qd2
{[%clk 0:01:54.3]} 47... Qd6 {[%clk 0:00:11.8]} 48. Ne1 {[%clk 0:01:48.9]} 48...
Qf4 {[%clk 0:00:10.6]} 49. Qxf4 {[%clk 0:01:47.5]} 49... Nxf4 {[%clk 0:00:12]}
50. Kf1 {[%clk 0:01:45.9]} 50... Nxh3 {[%clk 0:00:12.6]} 51. Ng2 {[%clk
0:01:45.8]} 51... Ng5 {[%clk 0:00:12.8]} 52. Ke2 {[%clk 0:01:45.8]} 52... Ne4
{[%clk 0:00:12]} 53. Bb2 {[%clk 0:01:44.5]} 53... Nf6 {[%clk 0:00:11.9]} 54. f3
{[%clk 0:01:44.8]} 54... Nd5 {[%clk 0:00:13.2]} 55. Kd3 {[%clk 0:01:41.1]} 55...
Nxb4+ {[%clk 0:00:14.2]} 56. Ke4 {[%clk 0:01:42.3]} 56... Nd5 {[%clk 0:00:14.4]}
57. Bc1 {[%clk 0:01:41.1]} 57... Bf6 {[%clk 0:00:11.7]} 58. f4 {[%clk
0:01:41.8]} 58... Kg7 {[%clk 0:00:12.2]} 59. g5 {[%clk 0:01:42.3]} 59... hxg5
{[%clk 0:00:13.7]} 60. fxg5 {[%clk 0:01:43.3]} 60... Bd8 {[%clk 0:00:15]} 61.
Ke5 {[%clk 0:01:44.1]} 61... Bc7+ {[%clk 0:00:15.6]} 62. Ke4 {[%clk 0:01:44.9]}
62... f5+ {[%clk 0:00:15]} 63. gxf6+ {[%clk 0:01:45.1]} 63... Kxf6 {[%clk
0:00:16.5]} 64. Ne3 {[%clk 0:01:44.6]} 64... Nxe3 {[%clk 0:00:16.4]} 65. Bxe3
{[%clk 0:01:45.7]} 65... Ke6 {[%clk 0:00:17.8]} 66. Bg5 {[%clk 0:01:46.2]} 66...
Bb6 {[%clk 0:00:14.8]} 67. Bh4 {[%clk 0:01:43.7]} 67... Bc7 {[%clk 0:00:14.9]}
68. Bg5 {[%clk 0:01:44.3]} 68... Ba5 {[%clk 0:00:15.8]} 69. Be3 {[%clk 0:01:45]}
69... Bc3 {[%clk 0:00:16.9]} 70. Bg5 {[%clk 0:01:45.4]} 70... b4 {[%clk
0:00:14.6]} 71. Kd3 {[%clk 0:01:46]} 71... Kd5 {[%clk 0:00:15.7]} 72. Bf6 {[%clk
0:01:46]} 72... c5 {[%clk 0:00:14.4]} 73. Bg7 {[%clk 0:01:45.2]} 73... Bxd4
{[%clk 0:00:13.4]} 74. Bxd4 {[%clk 0:01:45.5]} 74... cxd4 {[%clk 0:00:14.6]} 75.
Kc2 {[%clk 0:01:46]} 75... Kc4 {[%clk 0:00:15.4]} 0-1